[Event "Open Nuevo Centro. Jornada 2"]
[Site "Chess.com"]
[Date "2020.06.26"]
[Round "8"]
[White "Borissov, Julián"]
[Black "Gil López, Alejandro"]
[Result "0-1"]
[WhiteElo "1866"]
[BlackElo "2114"]
[TimeControl "180+2"]
[EndTime "11:58:06 PDT"]
[Termination "Victoria de AglVal0313 por abandono"]

1. e4 {[%clk 0:03:01.9]} 1... c5 {[%clk 0:02:59.8]} 2. Nf3 {[%clk 0:03:02.4]}
2... g6 {[%clk 0:03:01.2]} 3. d4 {[%clk 0:03:03.2]} 3... cxd4 {[%clk 0:03:01.3]}
4. Nxd4 {[%clk 0:03:04.5]} 4... Bg7 {[%clk 0:03:02]} 5. Nc3 {[%clk 0:03:03.7]}
5... Nc6 {[%clk 0:03:03]} 6. Be3 {[%clk 0:03:01.6]} 6... d6 {[%clk 0:03:04.3]}
7. Be2 {[%clk 0:03:00.1]} 7... Nf6 {[%clk 0:03:03]} 8. O-O {[%clk 0:02:59.7]}
8... O-O {[%clk 0:03:02.9]} 9. Kh1 {[%clk 0:02:57.1]} 9... Bd7 {[%clk
0:03:01.1]} 10. f4 {[%clk 0:02:54.2]} 10... a6 {[%clk 0:02:55.9]} 11. Nxc6
{[%clk 0:02:43.8]} 11... Bxc6 {[%clk 0:02:54.8]} 12. Bf3 {[%clk 0:02:44.5]}
12... Qc7 {[%clk 0:02:43.9]} 13. h4 {[%clk 0:02:36.7]} 13... h5 {[%clk
0:02:37.4]} 14. Qd2 {[%clk 0:02:24]} 14... Rad8 {[%clk 0:02:29.8]} 15. Qf2
{[%clk 0:02:21]} 15... Rc8 {[%clk 0:02:24.9]} 16. Bb6 {[%clk 0:02:19.3]} 16...
Qd7 {[%clk 0:02:23.1]} 17. Rad1 {[%clk 0:02:17.3]} 17... Ng4 {[%clk 0:02:20.4]}
18. Qe2 {[%clk 0:02:10.7]} 18... Bf6 {[%clk 0:02:01.1]} 19. Bxg4 {[%clk
0:02:06.7]} 19... Qxg4 {[%clk 0:01:57.4]} 20. Qxg4 {[%clk 0:01:52]} 20... hxg4
{[%clk 0:01:59.3]} 21. g3 {[%clk 0:01:17.7]} 21... Bxc3 {[%clk 0:01:58.7]} 22.
bxc3 {[%clk 0:01:17.9]} 22... Bxe4+ {[%clk 0:02:00.1]} 23. Kh2 {[%clk
0:01:16.5]} 23... Rxc3 {[%clk 0:01:56.9]} 24. Rd2 {[%clk 0:01:15.9]} 24... Rfc8
{[%clk 0:01:55.3]} 25. Re1 {[%clk 0:01:16]} 25... d5 {[%clk 0:01:51.8]} 26. Ree2
{[%clk 0:01:01.3]} 26... Rxc2 {[%clk 0:01:51.1]} 27. Rxc2 {[%clk 0:01:02.7]}
27... Rxc2 {[%clk 0:01:52.1]} 28. Rxc2 {[%clk 0:01:03.8]} 28... Bxc2 {[%clk
0:01:54]} 29. Kg2 {[%clk 0:01:04.9]} 29... Bb1 {[%clk 0:01:38.5]} 30. a3 {[%clk
0:01:01.4]} 30... f6 {[%clk 0:01:39.3]} 31. Kf2 {[%clk 0:00:56.6]} 31... Kf7
{[%clk 0:01:40]} 32. Ke3 {[%clk 0:00:54.8]} 32... e5 {[%clk 0:01:38.3]} 33. Bc7
{[%clk 0:00:52]} 33... Ke6 {[%clk 0:01:33.7]} 34. Bd8 {[%clk 0:00:49.3]} 34...
d4+ {[%clk 0:01:31.4]} 35. Kd2 {[%clk 0:00:48]} 35... exf4 {[%clk 0:01:31.8]}
36. gxf4 {[%clk 0:00:48.6]} 36... g3 {[%clk 0:01:31.2]} 37. Bb6 {[%clk 0:00:47]}
37... Kd5 {[%clk 0:01:29.1]} 38. f5 {[%clk 0:00:46.1]} 38... Bxf5 {[%clk
0:01:28.4]} 39. Bc7 {[%clk 0:00:44.9]} 39... g2 {[%clk 0:01:27.9]} 40. Bh2
{[%clk 0:00:46.2]} 40... Ke4 {[%clk 0:01:25.8]} 41. Bg1 {[%clk 0:00:46.7]} 41...
Bg4 {[%clk 0:01:26.2]} 42. Bh2 {[%clk 0:00:46.3]} 42... f5 {[%clk 0:01:24.4]}
0

[Event "Open Nuevo Centro. Jornada 2"]
[Site "Chess.com"]
[Date "2020.06.26"]
[Round "8"]
[White "Valero Martinez, Óscar"]
[Black "Rodriguez Rodriguez, Joan David "]
[Result "0-1"]
[WhiteElo "1138"]
[BlackElo "1600"]
[TimeControl "180+2"]
[EndTime "11:58:37 PDT"]
[Termination "Victoria de Not_Jr_chess por jaque mate"]

1. e4 {[%clk 0:02:59.8]} 1... e5 {[%clk 0:02:56.1]} 2. Nf3 {[%clk 0:02:59.5]}
2... Nc6 {[%clk 0:02:57]} 3. Nc3 {[%clk 0:03:00]} 3... Nf6 {[%clk 0:02:57.7]} 4.
Bc4 {[%clk 0:03:01.5]} 4... Bc5 {[%clk 0:02:56.4]} 5. d3 {[%clk 0:02:53.4]} 5...
O-O {[%clk 0:02:55.9]} 6. Bg5 {[%clk 0:02:53.2]} 6... h6 {[%clk 0:02:56]} 7. Bh4
{[%clk 0:02:54.1]} 7... Be7 {[%clk 0:02:54]} 8. O-O {[%clk 0:02:52.6]} 8... d6
{[%clk 0:02:54.2]} 9. Nd5 {[%clk 0:02:50]} 9... Bg4 {[%clk 0:02:46.8]} 10. h3
{[%clk 0:02:22.5]} 10... Bxf3 {[%clk 0:02:47.6]} 11. Qxf3 {[%clk 0:02:23.2]}
11... Nxd5 {[%clk 0:02:46.9]} 12. Bxd5 {[%clk 0:02:24.1]} 12... Bxh4 {[%clk
0:02:45.8]} 13. Qg4 {[%clk 0:02:16.4]} 13... Bf6 {[%clk 0:02:30.3]} 14. c3
{[%clk 0:02:09.8]} 14... Rb8 {[%clk 0:02:21]} 15. b4 {[%clk 0:02:07.1]} 15...
Ne7 {[%clk 0:02:20.8]} 16. b5 {[%clk 0:01:50.3]} 16... Nxd5 {[%clk 0:02:19.6]}
17. exd5 {[%clk 0:01:51.3]} 17... a6 {[%clk 0:02:06.3]} 18. Rab1 {[%clk
0:01:45.6]} 18... axb5 {[%clk 0:01:53.6]} 19. Rxb5 {[%clk 0:01:46.6]} 19... c6
{[%clk 0:01:51.3]} 20. Rb4 {[%clk 0:01:30.9]} 20... cxd5 {[%clk 0:01:44.8]} 21.
f4 {[%clk 0:01:20.1]} 21... exf4 {[%clk 0:01:42.9]} 22. Rbxf4 {[%clk 0:01:20.5]}
22... Bxc3 {[%clk 0:01:28.7]} 23. d4 {[%clk 0:01:15.6]} 23... Qg5 {[%clk
0:01:21.3]} 24. Qf3 {[%clk 0:01:08.8]} 24... Ba5 {[%clk 0:00:48.4]} 25. Rxf7
{[%clk 0:00:58.2]} 25... Rxf7 {[%clk 0:00:49.5]} 26. Qxf7+ {[%clk 0:00:58]}
26... Kh7 {[%clk 0:00:50.4]} 27. Qd7 {[%clk 0:00:41]} 27... Qe3+ {[%clk
0:00:47]} 28. Kh2 {[%clk 0:00:39.5]} 28... Qxd4 {[%clk 0:00:38.6]} 29. Qf5+
{[%clk 0:00:31.9]} 29... Kh8 {[%clk 0:00:30.1]} 30. Qg6 {[%clk 0:00:26.4]} 30...
Qe5+ {[%clk 0:00:27.6]} 31. g3 {[%clk 0:00:25.8]} 31... Qe2+ {[%clk 0:00:24.9]}
32. Kg1 {[%clk 0:00:25.6]} 32... Bb6+ {[%clk 0:00:25.8]} 33. Kh1 {[%clk
0:00:18.5]} 33... Qxf1+ {[%clk 0:00:24.4]} 34. Kh2 {[%clk 0:00:19.5]} 34... Qg1#
{[%clk 0:00:26.3]} 0

[Event "Open Nuevo Centro. Jornada 2"]
[Site "Chess.com"]
[Date "2020.06.26"]
[Round "8"]
[White "Chernikov, Vladimir"]
[Black "Valverde Caballero, Rafael"]
[Result "1-0"]
[WhiteElo "2270"]
[BlackElo "1906"]
[TimeControl "180+2"]
[EndTime "11:58:39 PDT"]
[Termination "Victoria de isla88 por tiempo"]

1. d4 {[%clk 0:03:01.9]} 1... Nf6 {[%clk 0:02:59.9]} 2. Nc3 {[%clk 0:03:02.1]}
2... e6 {[%clk 0:02:52.2]} 3. Bf4 {[%clk 0:03:01.4]} 3... Bb4 {[%clk 0:02:37.1]}
4. e3 {[%clk 0:02:56.7]} 4... d5 {[%clk 0:02:29.2]} 5. Bd3 {[%clk 0:02:52.7]}
5... Nbd7 {[%clk 0:02:06.9]} 6. Ne2 {[%clk 0:02:45.9]} 6... Ne4 {[%clk
0:02:03.6]} 7. O-O {[%clk 0:02:32.9]} 7... Bxc3 {[%clk 0:02:02.7]} 8. Nxc3
{[%clk 0:02:28.6]} 8... Nxc3 {[%clk 0:02:02.9]} 9. bxc3 {[%clk 0:02:30.5]} 9...
Nf6 {[%clk 0:01:59.7]} 10. c4 {[%clk 0:02:29.1]} 10... c6 {[%clk 0:01:50.9]} 11.
cxd5 {[%clk 0:02:28.9]} 11... exd5 {[%clk 0:01:51.8]} 12. c4 {[%clk 0:02:24.9]}
12... Be6 {[%clk 0:01:45.7]} 13. c5 {[%clk 0:02:22.2]} 13... Qd7 {[%clk
0:01:33.3]} 14. Bd6 {[%clk 0:02:18.7]} 14... Bf5 {[%clk 0:01:31.7]} 15. Bxf5
{[%clk 0:02:13.2]} 15... Qxf5 {[%clk 0:01:31.9]} 16. Qb3 {[%clk 0:02:12.7]}
16... Qd7 {[%clk 0:01:17.1]} 17. Rfb1 {[%clk 0:02:10.8]} 17... Ne4 {[%clk
0:01:18.3]} 18. Qxb7 {[%clk 0:01:59.9]} 18... Rc8 {[%clk 0:01:07.9]} 19. Qxd7+
{[%clk 0:01:57.4]} 19... Kxd7 {[%clk 0:01:08.8]} 20. Rb7+ {[%clk 0:01:58.1]}
20... Ke6 {[%clk 0:01:09.5]} 21. Re7+ {[%clk 0:01:55.8]} 21... Kf6 {[%clk
0:01:09.6]} 22. Rxa7 {[%clk 0:01:51.8]} 22... Nxd6 {[%clk 0:01:07.7]} 23. cxd6
{[%clk 0:01:53.7]} 23... Rhd8 {[%clk 0:01:06.4]} 24. d7 {[%clk 0:01:47.1]} 24...
Rb8 {[%clk 0:01:04.8]} 25. Kf1 {[%clk 0:01:42.3]} 25... Ke6 {[%clk 0:01:05.1]}
26. Rc1 {[%clk 0:01:40.4]} 26... Rxd7 {[%clk 0:01:00.7]} 27. Rxc6+ {[%clk
0:01:39.3]} 27... Ke7 {[%clk 0:00:59.4]} 28. Rca6 {[%clk 0:01:34.8]} 28... Rb2
{[%clk 0:00:36.9]} 29. a4 {[%clk 0:01:33.6]} 29... g5 {[%clk 0:00:20.4]} 30. a5
{[%clk 0:01:33.4]} 30... g4 {[%clk 0:00:21.4]} 31. Ke1 {[%clk 0:01:30.2]} 31...
Rb1+ {[%clk 0:00:21.2]} 32. Ke2 {[%clk 0:01:26.2]} 32... Rb2+ {[%clk 0:00:23.1]}
33. Kd3 {[%clk 0:01:24.1]} 33... Rxf2 {[%clk 0:00:24.4]} 34. Rxd7+ {[%clk
0:01:22.1]} 34... Kxd7 {[%clk 0:00:25]} 35. Ra7+ {[%clk 0:01:23.5]} 35... Kc6
{[%clk 0:00:25.8]} 36. g3 {[%clk 0:01:20.2]} 36... Kb5 {[%clk 0:00:25.5]} 37.
Rd7 {[%clk 0:01:14.2]} 37... Kxa5 {[%clk 0:00:22.7]} 38. Rxd5+ {[%clk 0:01:15]}
38... Kb4 {[%clk 0:00:23.7]} 39. Rh5 {[%clk 0:01:14.6]} 39... Rf1 {[%clk
0:00:07.3]} 40. Ke4 {[%clk 0:01:12.8]} 40... f5+ {[%clk 0:00:09.2]} 41. Rxf5
{[%clk 0:01:12.4]} 41... Rh1 {[%clk 0:00:07.4]} 42. Rh5 {[%clk 0:01:13.2]} 1

[Event "Open Nuevo Centro. Jornada 2"]
[Site "Chess.com"]
[Date "2020.06.26"]
[Round "8"]
[White "Conejero Martínez, Víctor"]
[Black "Martínez Carvajal, Juan Francisco"]
[Result "1-0"]
[WhiteElo "1486"]
[BlackElo "1724"]
[TimeControl "180+2"]
[EndTime "11:58:43 PDT"]
[Termination "Victoria de Camelocota20 por tiempo"]

1. d4 {[%clk 0:03:00.3]} 1... Nf6 {[%clk 0:02:59.7]} 2. c4 {[%clk 0:02:59.9]}
2... e6 {[%clk 0:02:58]} 3. Nc3 {[%clk 0:03:00]} 3... Bb4 {[%clk 0:02:57.6]} 4.
Nf3 {[%clk 0:02:59.7]} 4... Ne4 {[%clk 0:02:49.8]} 5. Qc2 {[%clk 0:02:52.1]}
5... d5 {[%clk 0:02:42.2]} 6. e3 {[%clk 0:02:41.7]} 6... O-O {[%clk 0:02:28.8]}
7. Bd3 {[%clk 0:02:35.6]} 7... f5 {[%clk 0:02:13.3]} 8. O-O {[%clk 0:02:34.2]}
8... Bxc3 {[%clk 0:02:08.9]} 9. bxc3 {[%clk 0:02:33.8]} 9... b6 {[%clk
0:02:02.6]} 10. Ne5 {[%clk 0:02:33.1]} 10... Ba6 {[%clk 0:01:55.3]} 11. f3
{[%clk 0:02:31.9]} 11... Nd6 {[%clk 0:01:55.7]} 12. c5 {[%clk 0:02:11.3]} 12...
bxc5 {[%clk 0:01:34.2]} 13. dxc5 {[%clk 0:02:02.9]} 13... Nf7 {[%clk 0:01:28.8]}
14. Bxa6 {[%clk 0:01:56.9]} 14... Nxa6 {[%clk 0:01:27.1]} 15. Nc6 {[%clk
0:01:53.6]} 15... Qd7 {[%clk 0:01:22.4]} 16. Nd4 {[%clk 0:01:54.2]} 16... Nxc5
{[%clk 0:01:18.8]} 17. Ba3 {[%clk 0:01:51.7]} 17... Nb7 {[%clk 0:00:41.1]} 18.
Bxf8 {[%clk 0:01:50.4]} 18... Rxf8 {[%clk 0:00:42]} 19. Rfd1 {[%clk 0:01:43.3]}
19... Nbd6 {[%clk 0:00:41.7]} 20. Ne2 {[%clk 0:01:27.3]} 20... Nc4 {[%clk
0:00:41.3]} 21. Qc1 {[%clk 0:01:16.9]} 21... Nfd6 {[%clk 0:00:36.3]} 22. Rb1
{[%clk 0:01:07.6]} 22... c5 {[%clk 0:00:35.4]} 23. Re1 {[%clk 0:00:50.7]} 23...
Qa4 {[%clk 0:00:34]} 24. a3 {[%clk 0:00:33.4]} 24... Nxa3 {[%clk 0:00:29.4]} 25.
Ra1 {[%clk 0:00:34.2]} 25... Ndc4 {[%clk 0:00:29.6]} 26. Ng3 {[%clk 0:00:23.2]}
26... Rb8 {[%clk 0:00:20.4]} 27. e4 {[%clk 0:00:17.9]} 27... fxe4 {[%clk
0:00:18.8]} 28. fxe4 {[%clk 0:00:18.2]} 28... Rb2 {[%clk 0:00:15.2]} 29. exd5
{[%clk 0:00:16.2]} 29... Rc2 {[%clk 0:00:05.2]} 30. Qf4 {[%clk 0:00:15.4]} 1

[Event "Open Nuevo Centro. Jornada 2"]
[Site "Chess.com"]
[Date "2020.06.26"]
[Round "8"]
[White "Castellano López, Javier"]
[Black "Cebolla Ruiz, David"]
[Result "1-0"]
[WhiteElo "1809"]
[BlackElo "1561"]
[TimeControl "180+2"]
[EndTime "11:59:02 PDT"]
[Termination "Victoria de its_xavi_official por tiempo"]

1. d4 {[%clk 0:03:01.9]} 1... Nf6 {[%clk 0:02:56.5]} 2. c4 {[%clk 0:02:59.5]}
2... g6 {[%clk 0:02:56.6]} 3. Nc3 {[%clk 0:02:59.5]} 3... Bg7 {[%clk 0:02:57.5]}
4. e4 {[%clk 0:03:00.6]} 4... d6 {[%clk 0:02:59]} 5. Nf3 {[%clk 0:03:01.7]} 5...
O-O {[%clk 0:02:59.9]} 6. Be2 {[%clk 0:03:03.1]} 6... e5 {[%clk 0:03:01]} 7. O-O
{[%clk 0:03:04.4]} 7... Nc6 {[%clk 0:03:00]} 8. d5 {[%clk 0:03:05.4]} 8... Ne7
{[%clk 0:03:01.1]} 9. b4 {[%clk 0:03:06.1]} 9... Nh5 {[%clk 0:02:54.9]} 10. Re1
{[%clk 0:03:03.4]} 10... f5 {[%clk 0:02:55.5]} 11. a4 {[%clk 0:02:49.3]} 11...
f4 {[%clk 0:02:44.6]} 12. Ba3 {[%clk 0:02:47]} 12... Nf6 {[%clk 0:02:40.4]} 13.
Nd2 {[%clk 0:02:46.6]} 13... g5 {[%clk 0:02:39.1]} 14. f3 {[%clk 0:02:47.4]}
14... h5 {[%clk 0:02:36]} 15. c5 {[%clk 0:02:48]} 15... g4 {[%clk 0:02:31.9]}
16. b5 {[%clk 0:02:42.3]} 16... g3 {[%clk 0:02:25.8]} 17. hxg3 {[%clk
0:02:26.9]} 17... fxg3 {[%clk 0:02:26.4]} 18. Nc4 {[%clk 0:02:26.7]} 18... dxc5
{[%clk 0:02:17.1]} 19. Bxc5 {[%clk 0:02:25.7]} 19... b6 {[%clk 0:02:17.1]} 20.
Bb4 {[%clk 0:02:24.8]} 20... h4 {[%clk 0:02:14.9]} 21. d6 {[%clk 0:02:23.2]}
21... cxd6 {[%clk 0:02:15]} 22. Qxd6 {[%clk 0:02:21.5]} 22... Qxd6 {[%clk
0:02:05.8]} 23. Bxd6 {[%clk 0:02:23.4]} 23... Re8 {[%clk 0:01:31.9]} 24. Bxe5
{[%clk 0:02:13.4]} 24... Nh5 {[%clk 0:01:18.3]} 25. Bxg7 {[%clk 0:02:12]} 25...
Kxg7 {[%clk 0:01:18.2]} 26. Nd6 {[%clk 0:02:10.9]} 26... Rh8 {[%clk 0:01:14.3]}
27. Rac1 {[%clk 0:02:04]} 27... Nf4 {[%clk 0:01:01.9]} 28. Bf1 {[%clk
0:01:55.4]} 28... h3 {[%clk 0:00:57.6]} 29. gxh3 {[%clk 0:01:55.4]} 29... Nxh3+
{[%clk 0:00:54.9]} 30. Bxh3 {[%clk 0:01:51.5]} 30... Rxh3 {[%clk 0:00:53.4]} 31.
Ne2 {[%clk 0:01:47.2]} 31... Kf6 {[%clk 0:00:16.6]} 32. Nf4 {[%clk 0:01:32.9]}
32... Rh2 {[%clk 0:00:10.5]} 33. e5+ {[%clk 0:01:28.6]} 33... Kg7 {[%clk
0:00:09.6]} 34. Rc7 {[%clk 0:01:27.9]} 34... Kf8 {[%clk 0:00:08.1]} 35. Rec1
{[%clk 0:01:15.3]} 35... Bh3 {[%clk 0:00:06.9]} 36. Nxh3 {[%clk 0:01:15.2]}
36... Rxh3 {[%clk 0:00:07.5]} 37. Ne4 {[%clk 0:01:14.9]} 37... Rd8 {[%clk
0:00:03.9]} 38. Rxa7 {[%clk 0:00:58.2]} 38... Rd3 {[%clk 0:00:04]} 39. Rcc7
{[%clk 0:00:53.4]} 39... Rd1+ {[%clk 0:00:04.8]} 40. Kg2 {[%clk 0:00:53.9]}
40... Rhh1 {[%clk 0:00:03.7]} 41. Kxg3 {[%clk 0:00:45.3]} 1

[Event "Open Nuevo Centro. Jornada 2"]
[Site "Chess.com"]
[Date "2020.06.26"]
[Round "8"]
[White "Silva Rodriguez, Fernando"]
[Black "Vega Gutiérrez, Sabrina"]
[Result "0-1"]
[WhiteElo "2463"]
[BlackElo "2085"]
[TimeControl "180+2"]
[EndTime "11:59:08 PDT"]
[Termination "Victoria de Valeron87 por abandono"]

1. d4 {[%clk 0:03:01.9]} 1... d5 {[%clk 0:03:00.5]} 2. Nc3 {[%clk 0:03:03.4]}
2... Nf6 {[%clk 0:02:59.6]} 3. Bf4 {[%clk 0:03:04.8]} 3... c5 {[%clk 0:02:55.5]}
4. e3 {[%clk 0:03:05.1]} 4... cxd4 {[%clk 0:02:41.6]} 5. exd4 {[%clk 0:03:07]}
5... a6 {[%clk 0:02:42.4]} 6. Nf3 {[%clk 0:03:07.3]} 6... Nc6 {[%clk 0:02:43.4]}
7. Ne5 {[%clk 0:03:08.9]} 7... Qb6 {[%clk 0:02:40.6]} 8. Nxc6 {[%clk 0:02:36.1]}
8... Qxc6 {[%clk 0:02:36.7]} 9. Bd3 {[%clk 0:02:27.8]} 9... Bg4 {[%clk
0:02:35.8]} 10. Qd2 {[%clk 0:02:16.3]} 10... e6 {[%clk 0:02:32.4]} 11. a3 {[%clk
0:02:13.4]} 11... Be7 {[%clk 0:02:18.3]} 12. O-O {[%clk 0:02:14.2]} 12... O-O
{[%clk 0:02:17.8]} 13. Rfe1 {[%clk 0:02:07.7]} 13... Bh5 {[%clk 0:02:18.5]} 14.
Re3 {[%clk 0:01:42.3]} 14... Rac8 {[%clk 0:02:09.4]} 15. Rae1 {[%clk 0:01:42.1]}
15... Bg6 {[%clk 0:02:04.5]} 16. Be5 {[%clk 0:01:10.4]} 16... Ng4 {[%clk
0:00:45.5]} 17. Rg3 {[%clk 0:01:10.9]} 17... Nxe5 {[%clk 0:00:45.9]} 18. dxe5
{[%clk 0:01:12.8]} 18... b5 {[%clk 0:00:35.2]} 19. Ne2 {[%clk 0:00:53.7]} 19...
Bxd3 {[%clk 0:00:35.3]} 20. Nd4 {[%clk 0:00:54.8]} 20... Qc4 {[%clk 0:00:30.1]}
21. Rxd3 {[%clk 0:00:53.8]} 21... b4 {[%clk 0:00:21]} 22. axb4 {[%clk
0:00:55.7]} 22... Qxb4 {[%clk 0:00:21.1]} 23. c3 {[%clk 0:00:55.7]} 23... Qb6
{[%clk 0:00:21.1]} 24. Rg3 {[%clk 0:00:56.7]} 24... Rfd8 {[%clk 0:00:20.3]} 25.
Rg4 {[%clk 0:00:33.4]} 25... Bf8 {[%clk 0:00:20.6]} 26. h4 {[%clk 0:00:34.3]}
26... Rb8 {[%clk 0:00:21.6]} 27. Re2 {[%clk 0:00:34.6]} 27... a5 {[%clk
0:00:21.8]} 28. h5 {[%clk 0:00:35.9]} 28... a4 {[%clk 0:00:20.8]} 29. Kh2 {[%clk
0:00:36.4]} 29... Rdc8 {[%clk 0:00:18.2]} 30. Rg3 {[%clk 0:00:33.8]} 30... Rc4
{[%clk 0:00:19.1]} 31. Qg5 {[%clk 0:00:31.2]} 31... Qd8 {[%clk 0:00:17.7]} 32.
Qc1 {[%clk 0:00:26]} 32... Qh4+ {[%clk 0:00:12.8]} 33. Rh3 {[%clk 0:00:27.2]}
33... Qxd4 {[%clk 0:00:13.7]} 34. Ree3 {[%clk 0:00:18.6]} 34... Qf4+ {[%clk
0:00:14.3]} 35. Rhg3 {[%clk 0:00:18.4]} 35... d4 {[%clk 0:00:15]} 0

[Event "Open Nuevo Centro. Jornada 2"]
[Site "Chess.com"]
[Date "2020.06.26"]
[Round "8"]
[White "Aguado, Pablo Luis"]
[Black "Donate Moreno, David"]
[Result "1-0"]
[WhiteElo "1818"]
[BlackElo "1529"]
[TimeControl "180+2"]
[EndTime "11:59:09 PDT"]
[Termination "Victoria de PLAD_2006 por abandono"]

1. d4 {[%clk 0:03:01.9]} 1... Nf6 {[%clk 0:03:00.1]} 2. c4 {[%clk 0:03:02.7]}
2... c5 {[%clk 0:03:00.9]} 3. d5 {[%clk 0:03:03.3]} 3... b5 {[%clk 0:03:01.4]}
4. cxb5 {[%clk 0:03:03.9]} 4... a6 {[%clk 0:03:01.1]} 5. e3 {[%clk 0:03:04]}
5... g6 {[%clk 0:03:00.3]} 6. Nc3 {[%clk 0:03:02.4]} 6... Bg7 {[%clk 0:02:59.1]}
7. a4 {[%clk 0:02:59.8]} 7... axb5 {[%clk 0:02:58.6]} 8. Bxb5 {[%clk 0:02:58.1]}
8... Ba6 {[%clk 0:02:59]} 9. Bd2 {[%clk 0:02:56.9]} 9... Bxb5 {[%clk 0:02:57.5]}
10. axb5 {[%clk 0:02:56.9]} 10... Rxa1 {[%clk 0:02:56.8]} 11. Qxa1 {[%clk
0:02:55.8]} 11... d6 {[%clk 0:02:56.7]} 12. Nf3 {[%clk 0:02:52.8]} 12... O-O
{[%clk 0:02:56.6]} 13. O-O {[%clk 0:02:45.8]} 13... Nbd7 {[%clk 0:02:56.6]} 14.
Qa6 {[%clk 0:02:26.5]} 14... Nb6 {[%clk 0:02:53]} 15. e4 {[%clk 0:02:24.9]}
15... Nc4 {[%clk 0:02:50.6]} 16. b3 {[%clk 0:02:06.7]} 16... Nxd2 {[%clk
0:02:31.4]} 17. Nxd2 {[%clk 0:02:06.2]} 17... Qc7 {[%clk 0:02:28.9]} 18. b6
{[%clk 0:02:05.1]} 18... Qb8 {[%clk 0:02:26.5]} 19. Nb5 {[%clk 0:02:02.7]} 19...
Nd7 {[%clk 0:02:26]} 20. b7 {[%clk 0:02:00]} 20... c4 {[%clk 0:02:06.4]} 21.
Nxc4 {[%clk 0:01:59.6]} 21... Nc5 {[%clk 0:02:06.8]} 22. Qc6 {[%clk 0:01:35]}
22... Nxb7 {[%clk 0:01:53.2]} 23. Nb6 {[%clk 0:01:30.7]} 23... Nc5 {[%clk
0:01:50.8]} 24. b4 {[%clk 0:01:25.9]} 24... Nd3 {[%clk 0:01:44]} 25. Nd7 {[%clk
0:01:25.5]} 25... Qa8 {[%clk 0:01:20.2]} 26. Nxf8 {[%clk 0:01:23]} 26... Qxf8
{[%clk 0:01:07.5]} 27. Qc4 {[%clk 0:01:20.2]} 27... Ne5 {[%clk 0:01:06.6]} 28.
Qe2 {[%clk 0:01:19.2]} 28... Qb8 {[%clk 0:00:55.7]} 29. Rc1 {[%clk 0:01:07.3]}
29... Qb6 {[%clk 0:00:24.7]} 30. g3 {[%clk 0:01:03]} 30... Nf3+ {[%clk
0:00:22.2]} 31. Qxf3 {[%clk 0:00:59.4]} 31... Qxb5 {[%clk 0:00:22.2]} 32. Qb3
{[%clk 0:00:49.9]} 32... Bd4 {[%clk 0:00:19.1]} 33. Qc4 {[%clk 0:00:47.8]} 33...
Qb6 {[%clk 0:00:18.9]} 34. Rc2 {[%clk 0:00:46.8]} 34... Kg7 {[%clk 0:00:16.8]}
35. b5 {[%clk 0:00:45.4]} 35... Bc5 {[%clk 0:00:17.1]} 36. Qa4 {[%clk
0:00:43.8]} 36... Kf6 {[%clk 0:00:16.4]} 37. Qa6 {[%clk 0:00:43.9]} 37... Ke5
{[%clk 0:00:16.9]} 38. Qxb6 {[%clk 0:00:44.6]} 38... Bxb6 {[%clk 0:00:18.8]} 39.
Rc6 {[%clk 0:00:45.7]} 39... Bc5 {[%clk 0:00:17.8]} 40. b6 {[%clk 0:00:46.8]}
40... Kxe4 {[%clk 0:00:18.6]} 41. b7 {[%clk 0:00:47.6]} 41... Ba7 {[%clk
0:00:18.3]} 42. Ra6 {[%clk 0:00:48.6]} 42... Bb8 {[%clk 0:00:18.6]} 43. Ra8
{[%clk 0:00:49.8]} 43... Bc7 {[%clk 0:00:19.6]} 44. Rc8 {[%clk 0:00:46.2]} 44...
Bb8 {[%clk 0:00:21.5]} 45. Rxb8 {[%clk 0:00:47.1]} 45... Kxd5 {[%clk 0:00:20.4]}
46. Rc8 {[%clk 0:00:47.7]} 1

[Event "Open Nuevo Centro. Jornada 2"]
[Site "Chess.com"]
[Date "2020.06.26"]
[Round "8"]
[White "Lopez Mateo, Juan Carlos"]
[Black "Sanchez Saez, Francisco"]
[Result "1/2-1/2"]
[WhiteElo "2005"]
[BlackElo "2275"]
[TimeControl "180+2"]
[EndTime "11:59:12 PDT"]
[Termination "Tablas por repeticiÃ³n de movimientos"]

1. e4 {[%clk 0:03:01.9]} 1... g6 {[%clk 0:02:56.1]} 2. Nf3 {[%clk 0:02:55.8]}
2... Bg7 {[%clk 0:02:54.6]} 3. d4 {[%clk 0:02:49.1]} 3... d6 {[%clk 0:02:55]} 4.
Nc3 {[%clk 0:02:45.7]} 4... Nf6 {[%clk 0:02:54.5]} 5. Be2 {[%clk 0:02:42.1]}
5... O-O {[%clk 0:02:55]} 6. O-O {[%clk 0:02:39.2]} 6... Nc6 {[%clk 0:02:56.5]}
7. h3 {[%clk 0:02:33]} 7... e5 {[%clk 0:02:56.2]} 8. dxe5 {[%clk 0:01:53.6]}
8... dxe5 {[%clk 0:02:50.2]} 9. Bg5 {[%clk 0:01:44.8]} 9... Be6 {[%clk
0:02:40.3]} 10. Re1 {[%clk 0:01:20.6]} 10... h6 {[%clk 0:02:37.3]} 11. Be3
{[%clk 0:01:17.3]} 11... Qe7 {[%clk 0:02:21.2]} 12. Nd5 {[%clk 0:01:07.1]} 12...
Bxd5 {[%clk 0:02:21.6]} 13. exd5 {[%clk 0:01:03.8]} 13... Rad8 {[%clk
0:02:23.5]} 14. c4 {[%clk 0:00:55.8]} 14... e4 {[%clk 0:02:16.5]} 15. Nd2 {[%clk
0:00:51.2]} 15... Ne5 {[%clk 0:02:10]} 16. Qc2 {[%clk 0:00:35.8]} 16... b5
{[%clk 0:01:59.1]} 17. cxb5 {[%clk 0:00:18]} 17... Nxd5 {[%clk 0:01:56.3]} 18.
Bc5 {[%clk 0:00:14]} 18... Qh4 {[%clk 0:01:03]} 19. Bxf8 {[%clk 0:00:14.6]}
19... Bxf8 {[%clk 0:00:53.8]} 20. Nxe4 {[%clk 0:00:09.7]} 20... Nf4 {[%clk
0:00:47.8]} 21. g3 {[%clk 0:00:04.8]} 21... Nxh3+ {[%clk 0:00:31.3]} 22. Kh2
{[%clk 0:00:04.5]} 22... Qe7 {[%clk 0:00:16.2]} 23. Kxh3 {[%clk 0:00:05.4]}
23... Rd4 {[%clk 0:00:11.7]} 24. f4 {[%clk 0:00:05.7]} 24... Nd7 {[%clk
0:00:05.5]} 25. Kg2 {[%clk 0:00:05.6]} 25... Rxe4 {[%clk 0:00:05.6]} 26. Kf2
{[%clk 0:00:03.9]} 26... Qe6 {[%clk 0:00:04.7]} 27. Bf3 {[%clk 0:00:04.7]} 27...
Bc5+ {[%clk 0:00:05.2]} 28. Kg2 {[%clk 0:00:05.4]} 28... Rxe1 {[%clk 0:00:05.6]}
29. Rxe1 {[%clk 0:00:05.7]} 29... Qxe1 {[%clk 0:00:07.3]} 30. Bd5 {[%clk
0:00:04]} 30... Qg1+ {[%clk 0:00:07.3]} 31. Kh3 {[%clk 0:00:04.4]} 31... Qf1+
{[%clk 0:00:08.1]} 32. Kg4 {[%clk 0:00:03.7]} 32... Qxb5 {[%clk 0:00:08]} 33.
Qxg6+ {[%clk 0:00:03.3]} 33... Kh8 {[%clk 0:00:05.4]} 34. Qxh6+ {[%clk
0:00:04.8]} 34... Kg8 {[%clk 0:00:06.8]} 35. Qg6+ {[%clk 0:00:06.2]} 35... Kh8
{[%clk 0:00:08.3]} 36. Qh6+ {[%clk 0:00:07.7]} 36... Kg8 {[%clk 0:00:09.6]} 37.
Qg6+ {[%clk 0:00:09.1]} 37... Kh8 {[%clk 0:00:10.9]} 38. Qh6+ {[%clk 0:00:09.9]}
1/2-1